lending/lending_fUSD_20240908
["ID","MTS","AMOUNT","RATE_DAILY","PERIOD"]
[337540945,1725796239388,-215.0,0.0001429,2]
[337540946,1725796239397,-201.0,0.0001429,2]
[337540947,1725796239407,-5700.0,0.000143,5]
[337540948,1725796239416,-168.9496233,0.00014329,2]
[337540949,1725796239426,-14101.2249853,0.0001434,3]
[337540950,1725796239435,-215.0,0.0001435,2]
[337540951,1725796239445,-201.0,0.0001435,2]
[337540952,1725796239454,-201.0,0.0001438,2]
[337540953,1725796239464,-348.0,0.0001438,2]
[337540954,1725796239473,-1100.0,0.000144,5]
[337540955,1725796239483,-215.0,0.0001442,2]
[337540956,1725796239492,-201.0,0.0001442,2]
[337540957,1725796239501,-1122.82215809,0.00014456,2]
[337540958,1725796239511,-215.0,0.0001448,2]
[337540959,1725796239521,-201.0,0.0001448,2]
[337540960,1725796239531,-7702.03988147,0.000145,2]
[337540961,1725796239541,-1100.0,0.000145,5]
[337540962,1725796239551,-201.0,0.0001451,2]
[337540963,1725796239560,-348.0,0.0001451,2]
[337540964,1725796239571,-230.4,0.00014541,2]
[337540965,1725796239580,-215.0,0.0001455,2]
[337540966,1725796239590,-201.0,0.0001455,2]
[337540967,1725796239600,-3246.716,0.00014559,2]
[337540968,1725796239610,-7036.571,0.00014559,2]
[337540969,1725796239619,-1146.843,0.00014559,2]
[337540970,1725796239630,-1078.0,0.00014559,2]
[337540971,1725796239640,-198.86652125,0.0001457,2]
[337540972,1725796239650,-209.96855528,0.00014573,2]
[337540973,1725796239660,-174.49724789,0.0001458,2]
[337540974,1725796239671,-14101.2249853,0.0001459,3]
[337540975,1725796239681,-2070.54208187,0.0001459,2]
[337540976,1725796239690,-1100.0,0.000146,5]
[337540977,1725796239700,-215.0,0.0001461,2]
[337540978,1725796239709,-201.0,0.0001461,2]
[337540979,1725796239720,-100093.9173979,0.00014614,5]
[337540980,1725796239731,-168.9496233,0.00014614,2]
[337540981,1725796239740,-201.0,0.0001463,2]
[337540982,1725796239750,-348.0,0.0001463,2]
[337540983,1725796239759,-1500.0,0.00014646,2]
[337540984,1725796239769,-1000.0,0.00014651,2]
[337540985,1725796239778,-728.0,0.0001467,2]
[337540986,1725796239788,-282024.499705,0.0001467,3]
[337540987,1725796239797,-16198.1299477,0.0001467,2]
[337540988,1725796239807,-1158.72894254,0.0001467,2]
[337540989,1725796240504,-441.66001173,0.0001467,2]
[337540990,1725796240539,-1839.93992941,0.0001467,2]
[337540991,1725796240550,-384.30158449,0.0001467,2]
[337540992,1725796240562,-9916.12830563,0.0001467,2]
[337540993,1725796240572,-472.09967786,0.00014673,2]
[337540994,1725796240583,-500.0,0.00014673,2]
[337540995,1725796240592,-160.3646175,0.00014673,2]
[337540996,1725796240602,-500.59654926,0.00014673,2]
[337540997,1725796240611,-310.5996957,0.00014673,2]
[337540998,1725796240620,-1122.82215809,0.00014678,2]
[337540999,1725796240631,-170.52216632,0.00014679,2]
[337541000,1725796240640,-151.92626711,0.00014679,2]
[337541001,1725796240650,-64887.65727519,0.0001468,2]
[337541002,1725796240661,-570.23685725,0.0001468,2]
[337541003,1725796241572,-405281.90621295,0.0001468,2]
[337541004,1725796241639,-389.44550813,0.0001468,2]
[337541005,1725796241651,-83753.99677017,0.0001468,2]
[337541006,1725796241663,-238181.33402276,0.0001468,2]
[337541007,1725796241673,-215.0,0.0001468,2]
[337541008,1725796241682,-201.0,0.0001468,2]
[337541009,1725796241692,-89398.158236,0.0001468,2]
[337541027,1725796499178,184.0,0.00010959,2]
[337541028,1725796669522,445.62,0.00011638,2]
[337541029,1725796979706,900.0,0.00010068,2]
[337541030,1725796981737,900.0,0.00011438,2]
[337541031,1725797004959,1200.0,8.22e-05,2]
[337541032,1725797005056,500.0,8.22e-05,2]
[337541033,1725797006638,1200.0,9.59e-05,2]
[337541034,1725797006680,500.0,9.59e-05,2]
[337541035,1725797008164,1200.0,0.0001096,2]
[337541036,1725797014836,-500.0,0.0001233,2]
[337541037,1725797015427,-1200.0,0.0001233,2]
[337541039,1725797087754,-165.63091281,0.00012784,2]
[337541040,1725797091702,700.0,0.00010068,2]
[337541041,1725797093382,700.0,0.00011438,2]
[337541043,1725797115244,1000.0,8.22e-05,2]
[337541044,1725797116770,1000.0,9.59e-05,2]
[337541045,1725797118343,1000.0,0.0001096,2]
[337541046,1725797122263,-1000.0,0.0001233,2]
[337541047,1725797144201,-7244.43239914,0.00012708,2]
[337541048,1725797164997,438.66,0.00010994,2]
[337541050,1725797307705,164.25,0.00010959,2]
[337541051,1725797338847,-900.0,0.00012808,2]
[337541052,1725797338874,-700.0,0.00012808,2]
[337541053,1725797338901,-2494.47,0.00012823,2]
[337541054,1725797338929,-1359.38,0.0001284,2]
[337541055,1725797338956,-774.01595195,0.00012849,2]
[337541056,1725797370091,700.0,0.00010068,2]
[337541057,1725797372090,700.0,0.00011438,2]
[337541058,1725797415399,500.0,0.00011164,2]
[337541063,1725797431502,-500.0,0.00012534,2]
[337541064,1725797431513,-183.00821368,0.00012783,2]
[337541065,1725797431523,-700.0,0.00012808,2]
[337541066,1725797431532,-11497.56,0.00012844,2]
[337541068,1725797431543,-7935.48404805,0.00012849,2]
[337541070,1725797431552,-250.0,0.00012863,2]
[337541071,1725797431562,-6720.88683831,0.00012864,2]
[337541072,1725797431571,-494.93,0.00012864,2]
[337541073,1725797431581,-150.0,0.00012883,2]
[337541074,1725797431591,-200.0,0.00012884,2]
[337541075,1725797431600,-202.17,0.00012892,2]
[337541076,1725797431610,-949.85,0.00012894,2]
[337541077,1725797431620,-172.8,0.00012968,2]
[337541078,1725797431629,-150.39,0.00012971,2]
[337541079,1725797431639,-564.56,0.00012984,2]
[337541080,1725797431649,-250.0,0.00012991,2]
[337541081,1725797431659,-150.0,0.00013013,2]
[337541082,1725797431668,-2350.18,0.00013014,2]
[337541083,1725797431678,-2157.37,0.00013014,2]
[337541084,1725797431688,-5594.95,0.00013014,2]
[337541085,1725797431698,-500.0,0.00013014,2]
[337541086,1725797431707,-619.94,0.00013035,2]
[337541087,1725797431718,-896.43,0.00013048,2]
[337541088,1725797431728,-250.0,0.00013115,2]
[337541089,1725797431738,-295.94,0.00013136,2]
[337541090,1725797431747,-438.66,0.00013258,2]
[337541091,1725797431757,-167.56,0.00013386,2]
[337541092,1725797431767,-1106.4,0.00013394,2]
[337541093,1725797431777,-167.56,0.000134,2]
[337541094,1725797431787,-167.56,0.00013413,2]
[337541095,1725797431796,-167.56,0.00013427,2]
[337541096,1725797431806,-167.56,0.0001344,2]
[337541097,1725797431816,-167.56,0.00013453,2]
[337541098,1725797431825,-181.26,0.00013467,2]
[337541100,1725797431836,-198.47,0.00013625,2]
[337541102,1725797431846,-200.0,0.00013635,2]
[337541104,1725797431856,-9460.32714787,0.00013745,2]
[337541105,1725797431865,-1000.0,0.00013851,2]
[337541106,1725797431875,-500.0,0.00013904,2]
[337541107,1725797431884,-153.0,0.00014119,2]
[337541109,1725797431894,-700.0,0.00014178,2]
[337541111,1725797431903,-600.0,0.0001425,2]
[337541113,1725797431912,-419.24111319,0.00014321,2]
[337541115,1725797431923,-1500.0,0.00014393,2]
[337541117,1725797431932,-1500.0,0.00014395,2]
[337541118,1725797431942,-150.0,0.00014399,2]
[337541119,1725797431951,-151.98087173,0.00014453,2]
[337541120,1725797431960,-5084.7608,0.0001448,2]
[337541121,1725797431969,-448.20621851,0.0001449,2]
[337541122,1725797431979,-35877.3275,0.0001449,2]
[337541123,1725797431989,-1000.0,0.0001449,2]
[337541124,1725797431998,-150.0,0.00014492,2]
[337541125,1725797432008,-23.63089022,0.00014504,2]
[337541127,1725797432022,-126.36910978,0.00014504,2]
[337541129,1725797432032,-3000.0,0.0001453,2]
[337541131,1725797432041,-284.13496099,0.00014536,2]
[337541139,1725797432118,-164.07125752,0.00014536,2]
[337541141,1725797432128,-150.0,0.00014575,2]
[337541143,1725797432137,-23442.868,0.0001458,2]
[337541145,1725797432147,-6240.8465,0.0001458,2]
[337541147,1725797432157,-168.9496233,0.0001458,2]
[337541148,1725797432168,-1461.72162548,0.0001458,2]
[337541150,1725797432179,-777.11607452,0.0001458,2]
[337541152,1725797432188,-448.20621851,0.00014581,2]
[337541154,1725797432198,-150.0,0.00014585,2]
[337541156,1725797432208,-513.47900058,0.0001459,2]
[337541158,1725797432217,-6013.93711987,0.0001459,2]
[337541164,1725797432299,-6206.66548013,0.0001459,2]
[337541165,1725797432308,-7257.3533,0.0001459,2]
[337541166,1725797432318,-25264.8657278,0.0001459,2]
[337541167,1725797432329,-492.3441781,0.0001459,2]
[337541168,1725797432345,-308.06435349,0.0001459,2]
[337541169,1725797432356,-768.2038036,0.0001459,2]
[337541170,1725797432367,-7474.36861837,0.0001459,2]
[337541171,1725797432390,-1284.40976051,0.0001459,2]
[337541172,1725797432401,-405.84115355,0.0001459,2]
[337541173,1725797432412,-2365.2985783,0.0001459,2]
[337541174,1725797432423,-575.10458265,0.0001459,2]
[337541175,1725797432436,-3469.05296218,0.0001459,2]
[337541179,1725797438163,-162.02,0.00012524,2]
[337541180,1725797438175,-162.02,0.00012838,2]
[337541181,1725797438184,-162.02,0.00012838,2]
[337541182,1725797438193,-162.02,0.00012854,2]
[337541183,1725797438202,-162.02,0.00012854,2]
[337541184,1725797438211,-162.02,0.00012884,2]
[337541185,1725797438221,-162.02,0.00013004,2]
[337541186,1725797438230,-162.02,0.00013004,2]
[337541187,1725797438239,-250.31148145,0.0001459,2]
[337541188,1725797438250,-355.6906,0.0001459,2]
[337541189,1725797438259,-3999.73791854,0.0001459,2]
[337541190,1725797438272,-17006.77898146,0.0001459,2]
[337541191,1725797438281,-513.47900058,0.00014595,2]
[337541192,1725797438290,-174.49724788,0.000146,2]
[337541193,1725797438299,-513.47900058,0.000146,2]
[337541194,1725797438308,-1380.36138792,0.000146,2]
[337541195,1725797438316,-150.0,0.00014617,2]
[337541196,1725797438325,-448.20621851,0.00014627,2]
[337541197,1725797438335,-150.0,0.00014633,2]
[337541198,1725797438344,-19367.5912078,0.0001467,3]
[337541199,1725797438354,-448.20621851,0.00014672,2]
[337541200,1725797438363,-218.40329671,0.00014679,2]
[337541201,1725797438372,-239.32103365,0.00014679,2]
[337541202,1725797438381,-4152.82571359,0.0001468,3]
[337541203,1725797438509,-812.95,0.0001468,3]
[337541209,1725797439977,-2297.07098932,0.0001468,3]
[337541210,1725797439987,-2000.0,0.0001468,2]
[337541211,1725797439997,-200.0,0.0001468,2]
[337541212,1725797440007,-6109.9450353,0.0001468,2]
[337541213,1725797440017,-5348.3458241,0.0001468,2]
[337541215,1725797440026,-67062.2093959,0.0001468,2]
[337541217,1725797440035,-8378.59824,0.0001468,2]
[337541219,1725797440045,-43737.10546303,0.0001468,3]
[337541228,1725797443036,-348.82599169,0.0001468,3]
[337541229,1725797445678,-3000.0,0.0001468,2]
[337541230,1725797445688,-2078.70888371,0.0001468,3]
[337541234,1725797491931,500.0,0.00011164,2]
[337541235,1725797521375,750.0,0.00011,2]
[337541236,1725797611212,510.944509,0.0002625,120]
[337541237,1725797614204,202.335573,0.0002425,120]
[337541238,1725797683702,410.24,0.00011857,2]
[337541239,1725797793262,155.82,0.00010959,2]
[337541240,1725798187759,405.45,0.00011306,2]
[337541241,1725798334025,198.74,0.00010959,2]
[337541242,1725798343332,-500.0,0.00012534,2]
[337541243,1725798343355,-8514.22492676,0.000129,2]
[337541244,1725798343378,-800.0,0.00013,2]
[337541245,1725798343402,-158.77,0.00013175,2]
[337541246,1725798343427,-300.0,0.00013202,2]
[337541247,1725798343450,-250.0,0.00013203,2]
[337541248,1725798343475,-200.0,0.00013226,2]
[337541249,1725798343499,-729.03,0.00013236,2]
[337541250,1725798343521,-150.39,0.00013241,2]
[337541251,1725798343544,-163.45,0.00013246,2]
[337541252,1725798343568,-250.0,0.00013287,2]
[337541253,1725798343592,-171.93,0.00013336,2]
[337541254,1725798343616,-405.45,0.0001357,2]
[337541255,1725798343641,-150.0,0.00013654,2]
[337541256,1725798343666,-150.0,0.00013661,2]
[337541257,1725798343691,-150.0,0.00013686,2]
[337541258,1725798378180,2000.0,0.00013691,2]
[337541259,1725798392953,250.0,0.00013691,2]
[337541260,1725798413167,500.0,0.00011164,2]
[337541261,1725798414926,500.0,0.00012534,2]
[337541262,1725798493587,1700.80946594,0.00013,2]
[337541263,1725798535424,2267.42,0.0001367,2]
[337541264,1725798542739,200.0,0.0001367,2]
[337541265,1725798549718,191.0,0.00013699,2]
[337541266,1725798553157,183.6,0.0001367,2]
[337541267,1725798582931,6500.0,0.00027,120]
[337541272,1725798598312,942.12,0.00013689,2]
[337541286,1725798631656,-1000.0,0.00013721,2]
[337541287,1725798631666,-183.6,0.00013739,2]
[337541288,1725798631675,-163.45,0.00013793,2]
[337541289,1725798631685,-500.0,0.00013904,2]
[337541290,1725798631695,-420.1982941,0.0001434,2]
[337541291,1725798631705,-150.0,0.000145,2]
[337541292,1725798631714,-150.0,0.00014505,2]
[337541293,1725798631723,-2642.50658,0.0001453,2]
[337541294,1725798631733,-1679.63079293,0.0001454,2]
[337541295,1725798631744,-152.0,0.00014548,3]
[337541296,1725798631754,-150.0,0.00014557,2]
[337541297,1725798631768,-150.0,0.00014575,2]
[337541298,1725798631779,-8777.0417,0.0001459,2]
[337541299,1725798631788,-186.23336073,0.000146,2]
[337541300,1725798631798,-150.0,0.00014625,2]
[337541301,1725798631808,-150.0,0.00014639,2]
[337541302,1725798631817,-150.0,0.00014644,2]
[337541303,1725798631826,-66954.0865528,0.0001468,2]
[337541304,1725798631836,-7686.2792228,0.0001468,2]
[337541305,1725798631845,-5580.1327998,0.0001468,2]
[337541306,1725798631854,-19526.3120296,0.0001468,3]
[337541307,1725798631864,-194423.65049006,0.0001469,3]
[337541308,1725798631963,-7874.3179034,0.0001469,3]
[337541343,1725798637719,-3977.25,0.00014548,2]
[337541344,1725798637729,-142674.23011454,0.0001469,3]
[337541345,1725798637739,-50654.39524307,0.0001469,2]
[337541441,1725798639743,-1976.06817724,0.0001469,2]
[337541442,1725798640068,-561.73,0.0001469,2]
[337541446,1725798642721,-2498.64686529,0.0001469,2]
[337541447,1725798642731,-13015.98195951,0.0001469,2]
[337541448,1725798642743,-2741.6223,0.0001469,2]
[337541449,1725798642785,-28669.98975879,0.0001469,2]
[337541450,1725798642794,-33164.3477511,0.0001469,2]
[337541451,1725798642803,-2371.07778566,0.0001469,2]
[337541452,1725798643077,-1124.48879708,0.0001469,2]
[337541484,1725798660710,600.0,0.00010068,2]
[337541485,1725798662316,600.0,0.00011438,2]
[337541486,1725798663931,600.0,0.00012808,2]
[337541487,1725798667295,600.0,0.00011164,2]
[337541488,1725798668901,600.0,0.00012534,2]
[337541489,1725798699077,221.8056073,8.22e-05,2]
[337541490,1725798699099,478.1943927,8.22e-05,2]
[337541491,1725798700423,700.0,9.59e-05,2]
[337541492,1725798701997,700.0,0.0001096,2]
[337541493,1725798703593,700.0,0.0001233,2]
[337541494,1725798719699,500.0,8.22e-05,2]
[337541495,1725798720818,500.0,0.0001096,2]
[337541496,1725798722458,500.0,0.000137,2]
[337541497,1725798722891,397.39,0.00011883,2]
[337541499,1725798818838,500.0,0.0002591,120]
[337541500,1725798873393,5226.03440017,0.00025,60]
[337541501,1725798890225,786.8,0.00013686,2]
[337541502,1725798934985,250.0,0.00013686,2]
[337541503,1725799009931,169.82,0.00013647,2]
[337541504,1725799057069,200.0,0.00013688,2]
[337541505,1725799075350,200.0,0.00013699,2]
[337541506,1725799136289,471.06,0.00013647,2]
[337541507,1725799156758,8352.4,0.00013664,2]
[337541508,1725799158569,250.0,0.00013664,2]
[337541509,1725799239237,377.52,0.00011754,2]
[337541510,1725799242958,500.0,0.00013672,2]
[337541512,1725799265549,392.8,0.00027,120]
[337541513,1725799297944,1000.0,0.00013635,2]
[337541514,1725799316644,3200.9,0.00013699,2]
[337541515,1725799318899,184.0,0.00010959,2]
[337541516,1725799327048,750.0,0.00011,2]
[337541517,1725799328141,800.0,0.00013,2]
[337541518,1725799349294,343.11,0.00027,120]
[337541519,1725799401156,3031.9156073,0.00013633,2]
[337541520,1725799401179,1078.3143927,0.00013633,2]
[337541526,1725799459541,250.0,0.00013658,2]
[337541527,1725799574616,171.41,0.00013684,2]
[337541528,1725799635615,23241.12,0.00013635,2]
[337541529,1725799661308,250.0,0.00013635,2]
[337541530,1725799701189,9.1556073,0.000137,2]
[337541531,1725799701212,140.8443927,0.000137,2]
[337541532,1725799718338,200.14227711,0.00013631,2]
[337541533,1725799719725,165.51931538,0.00027,120]
[337541534,1725799722324,376.53,0.00011766,2]
[337541535,1725799741921,235.53,0.00013671,2]
[337541536,1725799743978,189.41,0.00013699,2]
[337541537,1725799795977,500.0,0.00013617,2]
[337541546,1725799832060,-165.47941094,0.00013804,2]
[337541547,1725799832070,-522.6892453,0.00013804,2]
[337541548,1725799832080,-2043.9145,0.00013804,2]
[337541549,1725799832089,-5548.28352206,0.00013839,2]
[337541550,1725799832098,-600.0,0.00013904,2]
[337541551,1725799832108,-1635.68192856,0.00014029,2]
[337541552,1725799832117,-376.53,0.00014029,2]
[337541553,1725799832127,-600.0,0.00014054,2]
[337541554,1725799832136,-150.0,0.00014164,2]
[337541555,1725799832147,-600.0,0.00014178,2]
[337541556,1725799832343,-600.0,0.00014237,2]
[337541557,1725799832353,-150.99,0.00014237,2]
[337541558,1725799832363,-518.2,0.00014237,2]
[337541559,1725799832372,-499.99,0.00014237,2]
[337541560,1725799832382,-600.0,0.0001425,2]
[337541561,1725799832392,-600.0,0.0001425,2]
[337541562,1725799832401,-2488.17736504,0.0001425,2]
[337541563,1725799832428,-340.44263496,0.0001425,2]
[337541564,1725799832438,-150.0,0.00014437,2]
[337541565,1725799832447,-420.1982941,0.00014438,2]
[337541566,1725799832457,-378.42432994,0.0001454,2]
[337541567,1725799832504,-621.57567006,0.0001454,2]
[337541568,1725799832514,-150.0,0.00014543,2]
[337541569,1725799832523,-153.86292,0.00014543,2]
[337541571,1725799832532,-150.0,0.00014589,2]
[337541573,1725799832542,-441.01349882,0.00014589,2]
[337541575,1725799832554,-560.58671435,0.00014589,2]
[337541577,1725799832563,-547.61019908,0.0001459,2]
[337541593,1725799832928,-15165.98410092,0.0001459,2]
[337541594,1725799832938,-13708.4313,0.0001459,2]
[337541595,1725799832947,-678.83400371,0.000146,2]
[337541596,1725799832956,-7500.0,0.000146,2]
[337541597,1725799832967,-1115.64637054,0.000146,2]
[337541598,1725799832988,-1459.0,0.000146,2]
[337541599,1725799832997,-158.96672704,0.000146,2]
[337541600,1725799833008,-1115.64637049,0.00014633,2]
[337541601,1725799833017,-1115.64637049,0.00014667,2]
[337541602,1725799833029,-678.8340037,0.00014675,2]
[337541603,1725799833039,-179.1519062,0.00014683,2]
[337541604,1725799833048,-819.7741476,0.00014683,2]
[337541605,1725799833058,-784.67308213,0.00014689,2]
[337541606,1725799833069,-4796.2659579,0.0001469,2]
[337541607,1725799833079,-3587.5723984,0.0001469,2]
[337541608,1725799833088,-179.1519062,0.0001469,2]
[337541609,1725799833097,-179.1519062,0.0001469,2]
[337541610,1725799833107,-179.1519062,0.0001469,2]
[337541611,1725799833117,-139315.695549,0.0001469,3]
[337541612,1725799833126,-162.839,0.0001469,2]
[337541613,1725799833136,-150.06,0.0001469,2]
[337541614,1725799833146,-3829.3819848,0.00014693,2]
[337541615,1725799833156,-179.1519062,0.00014693,2]
[337541616,1725799833167,-152.17139413,0.00014699,2]
[337541617,1725799833179,-821.0,0.000147,2]
[337541618,1725799833188,-43710.15051138,0.000147,2]
[337541619,1725799834900,200.0,0.00013615,2]
[337541622,1725799837930,-392.33654106,0.00014689,2]
[337541623,1725799837939,-127.64348694,0.000147,2]
[337541624,1725799837950,-300.32,0.000147,2]
[337541625,1725799837961,-210917.16870998,0.000147,2]
[337541626,1725799838023,-5314.22404625,0.000147,2]
[337541627,1725799838046,-24059.66385186,0.000147,2]
[337541628,1725799838057,-10880.0,0.000147,2]
[337541629,1725799838068,-440.1604635,0.000147,2]
[337541630,1725799838105,-17996.72186206,0.000147,2]
[337541631,1725799838116,-1656.96940033,0.000147,2]
[337541632,1725799838128,-496.804842,0.000147,2]
[337541633,1725799838139,-734.84497895,0.000147,2]
[337541634,1725799838324,-775.44461026,0.000147,2]
[337541639,1725799838371,-586.27968751,0.000147,2]
[337541641,1725799838384,-479.23585153,0.000147,2]
[337541643,1725799838395,-500.0,0.000147,2]
[337541645,1725799838407,-1856.5631075,0.000147,2]
[337541704,1725799840274,-567.57,0.000147,2]
[337541705,1725799840456,-25542.18993968,0.000147,2]
[337541712,1725799916674,500.0,0.00011164,2]
[337541713,1725799916911,500.0,0.00011164,2]
[337541714,1725799917871,500.0,0.00012534,2]
[337541715,1725799918249,500.0,0.00012534,2]
[337541716,1725800147007,250.0,0.0001363,2]
[337541717,1725800203083,250.0,0.00013575,2]
[337541718,1725800223291,219.0,0.0001364,2]
[337541719,1725800229025,219.0,0.0001352,2]
[337541720,1725800229394,219.0,0.000134,2]
[337541721,1725800229725,219.0,0.0001327,2]
[337541722,1725800230113,219.0,0.0001315,2]
[337541723,1725800230717,219.0,0.0001303,2]
[337541724,1725800230999,219.0,0.000129,2]
[337541725,1725800231342,219.0,0.0001278,2]
[337541726,1725800233913,219.0,0.0001265,2]
[337541727,1725800242903,18686.54333019,0.00013,2]
[337541728,1725800242927,6024.63666981,0.00013,2]
[337541729,1725800249162,161.29,0.00013457,2]
[337541730,1725800253037,1000.0,0.00026997,120]
[337541731,1725800291603,235.53,0.00013446,2]
[337541732,1725800320698,840.0,0.00013496,2]
[337541733,1725800324511,500.0,0.00013496,2]
[337541734,1725800340873,338.87,0.00011578,2]
[337541735,1725800382152,814.31781292,0.00026997,120]
[337541736,1725800455623,1952.95,0.00013469,2]
[337541737,1725800476736,814.31781292,0.00026997,120]
[337541738,1725800506583,500.0,0.00013699,2]
[337541739,1725800533909,250.0,0.00013513,2]
[337541740,1725800535578,1000.0,0.00026997,120]
[337541741,1725800536201,2751.0,0.00013699,2]
[337541742,1725800539707,-15012.0,0.00015,10]
[337541743,1725800539729,-3489.20767741,0.00015,10]
[337541744,1725800566103,155.82,0.00010959,2]
[337541745,1725800600164,1000.0,0.00026997,120]
[337541746,1725800634041,600.0,0.00026997,120]
[337541747,1725800704231,1000.0,0.00015,30]
[337541748,1725800763525,1000.0,0.00014,30]
[337541749,1725800767067,1000.0,0.00014,30]
[337541750,1725800768774,168.12,0.00013692,2]
[337541751,1725800774770,1000.0,0.00013,30]
[337541752,1725800866657,321.92,0.0001167,2]
[337541753,1725800880612,328.0,0.00013563,2]
[337541754,1725800949656,158.1,0.00013699,2]
[337541755,1725801032339,-219.0,0.0001377,2]
[337541756,1725801032349,-219.0,0.0001389,2]
[337541757,1725801032360,-200.0,0.000139,5]
[337541758,1725801032370,-500.0,0.00013904,2]
[337541759,1725801032381,-500.0,0.00013904,2]
[337541760,1725801032391,-321.92,0.00013934,2]
[337541761,1725801032402,-23.92677235,0.00014,5]
[337541762,1725801032414,-476.07322765,0.00014,5]
[337541763,1725801032425,-219.0,0.0001401,2]
[337541764,1725801032436,-700.0,0.000141,5]
[337541765,1725801032446,-219.0,0.0001414,2]
[337541766,1725801032456,-1000.0,0.000142,5]
[337541767,1725801032465,-219.0,0.0001426,2]
[337541768,1725801032476,-1300.0,0.000143,5]
[337541769,1725801032485,-300.0,0.00014379,2]
[337541770,1725801032495,-219.0,0.0001438,2]
[337541771,1725801032504,-499.99,0.0001438,2]
[337541773,1725801032514,-1668.28,0.0001438,2]
[337541775,1725801032523,-200.0,0.000144,5]
[337541777,1725801032532,-200.0,0.000145,5]
[337541778,1725801032542,-219.0,0.0001451,2]
[337541779,1725801032552,-2202.08881,0.0001455,2]
[337541780,1725801032562,-775.2076,0.0001459,2]
[337541781,1725801032571,-309.00069779,0.0001459,2]
[337541782,1725801032594,-285.29701288,0.0001459,2]
[337541783,1725801032604,-342.1,0.0001459,2]
[337541784,1725801038229,-110.12866929,0.0001459,2]
[337541785,1725801038238,-407.30040222,0.000146,2]
[337541786,1725801038249,-780.95245937,0.000146,2]
[337541787,1725801038258,-200.0,0.000146,5]
[337541788,1725801038267,-152.0,0.00014619,3]
[337541789,1725801038277,-219.0,0.0001463,2]
[337541790,1725801038286,-780.95245934,0.00014633,2]
[337541791,1725801038296,-780.95245934,0.00014667,2]
[337541792,1725801038305,-407.30040222,0.00014675,2]
[337541793,1725801038315,-150.0,0.00014675,2]
[337541794,1725801038324,-162.839,0.00014675,2]
[337541795,1725801038334,-1009.39900619,0.0001468,3]
[337541796,1725801038344,-5716.56227402,0.0001469,3]
[337541797,1725801038368,-3756.66,0.0001469,3]
[337541798,1725801038401,-2081.62126609,0.0001469,3]
[337541800,1725801038459,-5725.2883979,0.0001469,3]
[337541854,1725801040571,-1898.44917959,0.0001469,3]
[337541855,1725801040581,-150.06,0.0001469,2]
[337541856,1725801040590,-196.16827053,0.00014699,2]
[337541857,1725801040599,-798.0,0.000147,2]
[337541858,1725801040609,-1279256.10233213,0.000147,2]
[337541859,1725801040619,-1000.0,0.000147,2]
[337541860,1725801040629,-226.0,0.000147,2]
[337541861,1725801040638,-200.0,0.000147,5]
[337541863,1725801040648,-359.0,0.000147,2]
[337541864,1725801040658,-780.95245934,0.000147,2]
[337541865,1725801040667,-805.0,0.00014713,2]
[337541866,1725801040677,-1258.611,0.00014713,2]
[337541867,1725801040687,-1922.0,0.00014713,2]
[337541868,1725801040696,-253.396,0.00014713,2]
[337541869,1725801040706,-3341.0,0.00014713,2]